[Event "ITT 1st Parada Jamundi 2022"]
[Site "Jamundi Valle"]
[Date "2022.12.11"]
[Round "10.6"]
[White "Avila Pavas, Santiago"]
[Black "Aguero Jimenez, Luis Lazaro"]
[Result "1-0"]
[ECO "B90"]
[WhiteElo "2461"]
[BlackElo "2465"]
[Annotator "TA"]
[PlyCount "101"]
[EventDate "2022.12.05"]
[EventType "swiss"]
[EventCountry "COL"]
[SourceTitle "playchess.com"]
[Source "ChessBase"]
[SourceQuality "1"]
[TimeControl "5400+30"]

{[%evp 23,101,20,26,18,4,5,7,8,37,37,39,43,38,29,34,48,44,26,61,62,58,63,77,66,62,66,80,52,67,45,101,103,110,101,106,109,99,104,102,108,106,81,111,48,60,44,51,69,158,147,186,178,183,195,315,312,296,293,293,268,623,613,759,742,760,738,668,636,1099,1023,908,900,4775,4511,4775,4775,29969,29967,6095,4762]} 1. e4 {[%emt 0:00:11]} c5 {[%emt 0:02:39]} 2. Nf3 {[%emt 0:00:10]} d6 {[%emt 0:00:03]} 3. d4 {[%emt 0:00:15]} cxd4 {[%emt 0:00:03]} 4. Nxd4 {[%emt 0:00:07]} Nf6 {[%emt 0:00:03]} 5. Nc3 {[%emt 0:00:07]} a6 {[%emt 0:00:03]} 6. Be3 {[%emt 0:00:08]} e5 {[%emt 0:00:04]} 7. Nb3 {[%emt 0:00:05]} Be7 {[%emt 0:00:16]} 8. f3 {[%emt 0:00:06]} Be6 {[%emt 0:00:07]} 9. Qd2 {[%emt 0:00:05]} O-O {[%emt 0:00:32]} 10. O-O-O {[%emt 0:00:07]} Nbd7 {[%emt 0:00:06]} 11. g4 {[%emt 0:00:06]} b5 {[%emt 0:00:10]} 12. g5 {[%emt 0:00:06]} b4 {[%emt 0:00:17] 12...Nh5 is more advanced technology.} 13. gxf6 {[%emt 0:00:08] B90: Sicilian Najdorf: Unusual White 6th moves, 6 Be3 Ng4 and 6 Be3 e5.} bxc3 {[%emt 0:00:13]} 14. Qxc3 {[%emt 0:00:08]} Nxf6 {[%emt 0:00:48]} 15. Na5 {[%emt 0:00:07] [#] The position is equal.} Qb8 $146 {[%emt 0:09:03]} ({Predecessor:} 15... Rc8 16. Nc6 Qe8 17. Nxe7+ Qxe7 18. Qa5 Rc6 19. Rg1 Rfc8 20. Kb1 Nh5 21. Rg2 Qf6 {1-0 (48) Caruana,F (2783)-Maghsoodloo,P (2701) Chennai 2022}) 16. Nc6 {[%emt 0:02:32]} Qb7 {[%emt 0:00:29]} 17. Nxe7+ {[%emt 0:00:24]} (17. Rg1 {is more complex.} Rfc8 18. Nxe7+ Qxe7 19. Qa5) 17... Qxe7 {[%emt 0:00:02]} 18. Rg1 {[%emt 0:10:34]} Rfc8 {[%emt 0:04:04]} 19. Qa5 {[%emt 0:00:31]} Rc6 {[%emt 0:03:09]} 20. Kb1 {[%emt 0:09:19]} Qb7 {[%emt 0:01:39]} 21. Rg2 {[%emt 0:02:44]} Rb8 {[%emt 0:07:26][%csl Gb8][%cal Rb7b2]} 22. b3 {[%emt 0:01:18] Active counter play!} Bh3 {[%emt 0:06:50] [#]} 23. Rxg7+ {[%emt 0:11:03]} Kxg7 {[%emt 0:00:05]} 24. Bxh3 {[%emt 0:00:08]} Qb4 {[%emt 0:03:32]} 25. Qxb4 {[%emt 0:00:11] Dancing on a razor blade.} Rxb4 {[%emt 0:00:04]} 26. Bg5 {[%emt 0:01:30]} Ng8 {[%emt 0:08:57]} (26... Rb7 $14) 27. Bd7 $16 {[%emt 0:07:18]} Rc7 {[%emt 0:02:49]} 28. Rxd6 {[%emt 0:01:31]} Rd4 {[%emt 0:00:48]} 29. Rxd4 exd4 {[%emt 0:00:01][%mdl 4096] Endgame KRN-KB} 30. Bh3 {[%emt 0:00:40]} Ne7 {[%emt 0:08:45]} 31. Bf1 {[%emt 0:10:00]} a5 {[%emt 0:00:35]} 32. Bf4 {[%emt 0:06:43]} Rc3 {[%emt 0:04:10]} 33. Be5+ {[%emt 0:05:28]} ({White should try} 33. Bd3 $16) 33... f6 $1 $14 {[%emt 0:00:11]} 34. Bxd4 {[%emt 0:00:06]} Rxf3 {[%emt 0:00:04]} 35. Bb5 {[%emt 0:00:54]} Rf4 {[%emt 0:01:38] White stays focused until the end.} (35... Rh3 $14) 36. Bc3 $16 {[%emt 0:01:53] This pair of bishops is nice.} Rxe4 {[%emt 0:00:18]} 37. Bxa5 {[%emt 0:00:06]} f5 {[%emt 0:01:27]} 38. a4 {[%emt 0:03:49][%cal Ba2a4,Ba4a5][%mdl 32]} f4 {[%emt 0:04:59] [#]} (38... Kf6 {was called for.} 39. Bc3+ Ke6) 39. Bd3 $1 $18 {[%emt 0:04:33]} Re6 {[%emt 0:00:31]} 40. Bc3+ {[%emt 0:02:37]} Kf8 {[%emt 0:00:44]} 41. a5 {[%emt 0:02:48]} (41. Bxh7 Nd5 42. Bd4 Ne3 $14) 41... Ke8 $2 {[%emt 0:10:07]} (41... Nc6 42. Bc4 (42. Bxh7 $2 {is the wrong capture.} f3 $19) 42... Re8) 42. a6 {[%emt 0:02:42] Black must now prevent a7.} ({Less strong is} 42. Bxh7 f3 $14) 42... Nc8 {[%emt 0:00:23]} 43. Bd4 {[%emt 0:02:49]} ({Weaker is} 43. Bxh7 Rxa6 44. Bf5 Ne7 $11) 43... Rh6 {[%emt 0:04:58]} 44. a7 {[%emt 0:03:19]} Nxa7 {[%emt 0:00:09]} 45. Bxa7 {[%emt 0:00:05]} Rxh2 {[%emt 0:02:02]} 46. b4 {[%emt 0:00:16][%cal Bb3b4,Bb4b5,Bb5b6][%mdl 32] Threatens to win with b5.} f3 {[%emt 0:00:35]} 47. b5 {[%emt 0:00:29] b6 is the strong threat.} Rh4 {[%emt 0:00:16]} 48. Bf2 {[%emt 0:01:59]} Rg4 {[%emt 0:05:48]} 49. c4 {[%emt 0:06:04] b6 would kill now.} Rg2 {[%emt 0:02:21] [#] Against b6} 50. b6 $1 {[%emt 0:00:05]} Kd7 {[%emt 0:00:51]} (50... Kd8 51. Bh4+) 51. Bf5+ {[%emt 0:00:48] Weighted Error Value: White=0.04 (flawless) /Black=0.48} 1-0

[Event "ITT 1st Parada Jamundi 2022"]
[Site "Jamundi Valle"]
[Date "2022.12.11"]
[Round "10.7"]
[White "Larino Nieto, David"]
[Black "Cori Quispe, Kevin Joel"]
[Result "0-1"]
[ECO "A06"]
[WhiteElo "2466"]
[BlackElo "2469"]
[Annotator "TA"]
[PlyCount "163"]
[EventDate "2022.12.05"]
[EventType "swiss"]
[EventCountry "COL"]
[SourceTitle "playchess.com"]
[Source "ChessBase"]
[SourceQuality "1"]
[TimeControl "5400+30"]

{[%evp 9,163,31,47,37,37,14,22,-26,-21,-28,-11,-24,-13,-17,2,21,5,-30,2,-27,-25,-24,0,-28,-30,-34,-23,-40,-37,-43,-35,-66,-53,-59,-52,-44,-38,-26,-31,-39,-42,-81,-73,-88,-81,-74,-80,-77,-76,-83,-65,-94,-72,-104,-84,-77,-93,-89,-78,-130,-129,-154,-166,-154,-158,-175,-154,-155,-162,-150,-145,-140,-99,-128,-58,-71,-69,-91,-53,-72,-55,-73,-73,-73,0,0,0,-112,-92,-150,-94,-94,-111,-143,-142,-138,-52,-45,-51,-47,0,-418,-104,-105,-103,-106,-101,-118,-102,-116,-83,-98,-50,-104,-100,-110,-12,-12,-8,-8,-8,-8,-8,-11,-8,-8,-8,-8,-8,-8,-8,-8,-8,-8,-8,-8,-8,-29961,-29960,-29974,-29975,-29975,-29976,-29977,-29978,-29978,-29979,-29979,-29980,-29980,-29981,-29981,-29982,-29982,-29983,-29984]} 1. Nf3 {[%emt 0:08:09]} d5 {[%emt 0:00:24]} 2. b3 {[%emt 0:00:09]} c5 {[%emt 0:02:03]} 3. e3 {[%emt 0:01:26]} Nc6 {[%emt 0:00:20]} 4. Bb2 {[%emt 0:00:03]} f6 {[%emt 0:00:10]} 5. d4 {[%emt 0:00:05]} cxd4 {[%emt 0:00:06]} 6. exd4 {[%emt 0:00:18] A06: Réti Opening: 1 Nf3 d5.} Bg4 {[%emt 0:00:47][%cal Oe7e5] 6...e6 is vanishing.} 7. Be2 {[%emt 0:00:22] Against e5} e6 {[%emt 0:00:09] [#]} 8. Nh4 $146 {[%emt 0:02:02]} (8. O-O $142) ({Predecessor:} 8. O-O Bd6 9. c4 Nge7 10. Nc3 Qd7 11. Nb5 Bb8 12. Re1 O-O 13. h3 Bh5 14. Nh4 {1-0 (51) Anton Guijarro,D (2688)-Svidler,P (2723) Chess.com INT 2020}) 8... Bxe2 $11 {[%emt 0:00:06]} 9. Qxe2 {[%emt 0:00:02]} Qd7 $1 {[%emt 0:00:50]} 10. O-O {[%emt 0:00:05]} O-O-O {[%emt 0:01:32]} 11. Re1 {[%emt 0:02:11]} Re8 {[%emt 0:03:59]} (11... g5 $5 {[%cal Rg5h4]} 12. Nf3 g4 $11) 12. c4 {[%emt 0:00:16]} Bb4 {[%emt 0:00:30]} 13. Rc1 {[%emt 0:01:30]} dxc4 {[%emt 0:02:09]} 14. Qxc4 {[%emt 0:00:14]} Kb8 {[%emt 0:00:26]} 15. a3 {[%emt 0:00:44]} Bd6 {[%emt 0:00:59]} 16. b4 {[%emt 0:00:14]} Rc8 {[%emt 0:03:43]} 17. Qb5 {[%emt 0:00:22]} Nge7 {[%emt 0:00:32]} 18. Nd2 {[%emt 0:00:46]} Bf4 {[%emt 0:32:02]} 19. Nhf3 {[%emt 0:04:44]} Rhd8 {[%emt 0:04:13][%cal Rc6d4]} 20. Rd1 {[%emt 0:04:08][%cal Bc1d1,Bd1d2,Bd2c2][%mdl 32]} Bxd2 {[%emt 0:03:22]} 21. Rxd2 {[%emt 0:00:15]} Nd5 {[%emt 0:08:09][%cal Oc6e5]} (21... Ne5 $5 22. Qe2 Nc4 $15) 22. Re1 {[%emt 0:00:55] Inhibits Ne5.} g5 {[%emt 0:00:47]} 23. Qe2 {[%emt 0:01:34]} Re8 {[%emt 0:01:15]} 24. Rc2 {[%emt 0:02:08]} Nf4 $36 {[%emt 0:01:38][%mdl 2048] Black has good play.} (24... Nce7 {simplifies} 25. g3 Nf5 26. Rcc1 Rxc1 27. Rxc1 h5) 25. Qe3 {[%emt 0:02:22]} Ne7 {[%emt 0:03:28]} 26. Qe4 {[%emt 0:07:24]} Nf5 {[%emt 0:02:14]} (26... Rxc2 {simplifies} 27. Qxc2 Nf5 28. Bc1 Nd5) 27. Bc1 {[%emt 0:02:39]} Nd5 {[%emt 0:00:28]} 28. Rxc8+ {[%emt 0:00:07]} Rxc8 {[%emt 0:00:28]} 29. Bd2 {[%emt 0:00:02]} h5 {[%emt 0:03:50]} 30. h3 {[%emt 0:00:22] Prevents g4.} Re8 {[%emt 0:00:36]} 31. Rc1 {[%emt 0:01:26]} Rg8 {[%emt 0:00:39]} 32. Re1 {[%emt 0:02:11]} Nc7 $1 {[%emt 0:01:36]} 33. Be3 {[%emt 0:03:55]} Nd6 {[%emt 0:05:43]} 34. Qc2 {[%emt 0:00:28]} (34. Qd3 $142) 34... Nd5 {[%emt 0:00:13]} 35. Qe2 {[%emt 0:00:58]} Nf5 {[%emt 0:01:38] ...g4 is the strong threat.} 36. Nh2 {[%emt 0:03:15] Prevents g4.} g4 {[%emt 0:00:43]} 37. hxg4 {[%emt 0:01:36]} hxg4 {[%emt 0:00:05]} 38. Bc1 {[%emt 0:03:32]} Nxd4 {[%emt 0:08:49]} 39. Qe4 {[%emt 0:00:01]} e5 {[%emt 0:00:32] Strongly threatening ...Nc3.} 40. Bb2 {[%emt 0:01:27] Prevents Nc3.} Nc6 {[%emt 0:01:11] Pair of Knights!} ({Stronger than} 40... g3 41. fxg3 Nc6 42. Qf3 $17) 41. Nf1 {[%emt 0:01:17]} Qe6 {[%emt 0:04:11]} (41... Nf4 $17 42. Ng3 Rc8) 42. b5 $15 {[%emt 0:00:36] Inhibits a6.} Nce7 {[%emt 0:00:06]} 43. Ng3 {[%emt 0:00:27] Prevents Nf5.} Rc8 {[%emt 0:00:22]} 44. a4 {[%emt 0:01:31]} Nb6 {[%emt 0:01:27]} 45. a5 {[%emt 0:00:39]} Nc4 {[%emt 0:00:05]} 46. a6 {[%emt 0:00:07]} bxa6 {[%emt 0:01:54]} (46... Nxb2 $2 47. Qxb7#) (46... Qd7 $17 47. axb7 Qxb7) 47. bxa6 $11 {[%emt 0:00:05][%csl Ga6][%cal Re4b7]} Qc6 {[%emt 0:00:24] Inhibits Qb7+. White must now prevent ...Qxe4.} (47... Nxb2 $2 48. Qb7#) 48. Qe2 {[%emt 0:00:11]} (48. Qh7 $11 {remains equal.}) 48... Qxa6 $17 {[%emt 0:00:34]} 49. Bd4 {[%emt 0:05:02]} (49. Bc1 $142) 49... Rc7 {[%emt 0:00:26]} (49... Qc6 $142 $1 50. Ba1 (50. Qa2 $2 Rc7 $17) 50... Qe6 51. Rb1+ Ka8 52. Qe4+ Nd5) 50. Rb1+ {[%emt 0:00:44]} Ka8 $1 {[%emt 0:00:13]} ({Don't play} 50... Rb7 $6 51. Rxb7+ Kxb7 52. Bc5 $11) 51. Bc3 {[%emt 0:00:58]} Nd5 {[%emt 0:00:44]} 52. Be1 {[%emt 0:00:32]} Qc6 {[%emt 0:00:05]} (52... Qe6 $1 $17 {aiming for ...Nf4.} 53. Qd1 Nd6) 53. Qxg4 $15 {[%emt 0:00:20]} Nf4 {[%emt 0:00:07][%csl Gf4][%cal Rc6g2]} 54. Nf5 {[%emt 0:00:40]} Nb6 {[%emt 0:01:29]} (54... Qd5 $15 {should be considered.}) 55. Bb4 $2 {[%emt 0:00:51][%mdl 8192] [#]} (55. Ba5 $11) 55... Qe4 $2 {[%emt 0:00:54]} (55... Qc2 $1 $19 {[%cal Rc2b1] and Black stays clearly on top.} 56. Ra1 Qb2 57. Qf3+ Nfd5) 56. Qf3 $17 {[%emt 0:01:53]} Qxf3 {[%emt 0:00:14] Black is much more active.} 57. gxf3 {[%emt 0:00:01]} Nfd5 {[%emt 0:00:18]} 58. Ba5 {[%emt 0:00:20]} Kb7 {[%emt 0:00:39]} 59. Ne3 {[%emt 0:00:07]} Nxe3 {[%emt 0:00:49]} 60. fxe3 {[%emt 0:00:03][%mdl 4096] Endgame KRB-KRN} Rc2 {[%emt 0:00:06]} ({Better is} 60... Rc5 $17 61. Be1 a5) 61. f4 {[%emt 0:00:14]} ({White should play} 61. Be1 $15) 61... e4 {[%emt 0:00:59]} 62. Rb4 {[%emt 0:00:09] [#]} f5 {[%emt 0:02:19]} (62... Rc4 $1 $17 {[%cal Rc4b4] And now ...Rxb4 would win.} 63. Rb2 Rc5) 63. Rb5 $11 {[%emt 0:00:04]} Ka6 {[%emt 0:00:02]} 64. Rxf5 {[%emt 0:00:10]} Nc4 {[%emt 0:00:03][%csl LRa5,LRe3]} 65. Be1 {[%emt 0:03:04]} Nxe3 {[%emt 0:00:09]} 66. Ra5+ {[%emt 0:00:03]} Kb7 {[%emt 0:00:50]} 67. Bf2 {[%emt 0:01:06]} Rc1+ {[%emt 0:00:50]} 68. Kh2 {[%emt 0:00:01]} Ng4+ {[%emt 0:00:05]} (68... Rc3 {simplifies} 69. Kg1 a6 70. Bxe3 Rxe3 71. Re5 Kb6) 69. Kg3 $1 {[%emt 0:00:03]} e3 {[%emt 0:00:04]} (69... Nxf2 {simplifies} 70. Kxf2 Rc3 71. Ke2 Rf3) 70. Be1 $1 {[%emt 0:00:23]} Nf6 {[%emt 0:01:22]} 71. Rf5 $1 {[%emt 0:00:09]} Rxe1 {[%emt 0:01:10]} 72. Rxf6 {[%emt 0:00:01] KR-KR} a5 {[%emt 0:00:04] ( -> ...a4)} 73. Kf3 $2 {[%emt 0:00:33][%mdl 8192] This costs White the game.} (73. Rd6 $11) 73... a4 {[%emt 0:00:19] Black mates.} 74. Rf5 {[%emt 0:00:01]} a3 {[%emt 0:01:03]} 75. Ra5 {[%emt 0:00:29]} Ra1 {[%emt 0:00:01]} 76. Kxe3 {[%emt 0:05:05]} a2 {[%emt 0:00:04]} 77. Ke4 {[%emt 0:00:21]} Re1+ {[%emt 0:00:08]} 78. Kd5 {[%emt 0:00:05]} a1=Q {[%emt 0:00:07]} ({Inferior is} 78... a1=B 79. Ra3 $11) 79. Rxa1 {[%emt 0:00:02]} Rxa1 {[%emt 0:00:05]} 80. f5 {[%emt 0:00:02]} Ra6 {[%emt 0:01:11]} 81. Ke5 {[%emt 0:00:18]} Kc7 {[%emt 0:00:04]} 82. Kd4 {[%emt 0:38:16] Weighted Error Value: White=0.26 (precise) /Black=0.21 (precise)} 0-1

[Event "ITT 1st Parada Jamundi 2022"]
[Site "Jamundi Valle"]
[Date "2022.12.11"]
[Round "10.8"]
[White "Mateus, Alejandro"]
[Black "Zuluaga Mancilla, Cesar"]
[Result "1/2-1/2"]
[ECO "B28"]
[WhiteElo "2308"]
[BlackElo "2230"]
[Annotator "TA"]
[PlyCount "147"]
[EventDate "2022.12.05"]
[EventType "swiss"]
[EventCountry "COL"]
[SourceTitle "playchess.com"]
[Source "ChessBase"]
[SourceQuality "1"]
[TimeControl "5400+30"]

{[%evp 10,147,37,36,42,46,54,61,66,52,64,73,73,79,77,68,77,57,70,43,51,0,0,-18,-12,-16,-14,-10,-2,-3,0,-14,-20,-15,-13,-23,-25,-25,-24,-25,-11,-12,-17,-17,-9,-21,-17,-20,-8,-42,-15,-23,-15,-18,-6,-45,-15,-43,-43,-42,-12,-12,-8,-12,-7,-19,-17,-17,-23,-32,-27,-51,-36,-36,-28,-30,0,0,0,0,0,0,0,0,0,-2,-8,-23,0,0,0,0,0,0,0,0,0,0,0,0,0,0,0,0,0,0,0,0,0,0,0,0,42,42,42,42,42,42,42,42,42,0,0,2,42,42,42,42,42,80,80,80,80,80,80,80,80,67,42,0]} 1. e4 {[%emt 0:01:27][%cal Be2e4,Be4e5,Be5d6][%mdl 32]} c5 {[%emt 0:05:48]} 2. Nf3 {[%emt 0:00:07]} a6 {[%emt 0:00:06]} 3. c3 {[%emt 0:00:17]} Nf6 {[%emt 0:01:37]} 4. e5 {[%emt 0:00:34]} Nd5 {[%emt 0:00:01]} 5. d4 {[%emt 0:04:00]} cxd4 {[%emt 0:00:11]} 6. Bc4 {[%emt 0:01:37]} Nb6 {[%emt 0:08:39] B28: Sicilian: 2 Nf3 a6 (O'Kelly Variation).} 7. Bb3 {[%emt 0:03:33]} (7. Qxd4 Nc6 8. Qh4 Nxc4 9. Qxc4 d5 10. exd6 Qxd6 $15) 7... d5 {[%emt 0:02:28]} 8. exd6 {[%emt 0:01:38]} (8. Qxd4 Nc6 9. Qf4 g6 $11) 8... e6 {[%emt 0:04:34]} 9. Qxd4 {[%emt 0:07:11] Strongly threatening Bf4.} (9. Nbd2 {simplifies} Bxd6 10. Ne4 O-O 11. Nxd6 Qxd6 12. O-O) 9... Nc6 {[%emt 0:02:30]} 10. Qg4 {[%emt 0:00:10] [#] White is much more active. The black rooks are badly placed.} h5 $146 {[%emt 0:10:29]} ({Predecessor:} 10... Qxd6 11. O-O Ne7 12. Rd1 Qc7 13. Bf4 Qc5 14. Be3 Qc7 15. Bxb6 Qxb6 16. Na3 h5 {1-0 (27) Atef,M-Ramadan,M Egypt 2007}) 11. Qe4 {[%emt 0:02:10]} Bxd6 {[%emt 0:01:29]} 12. O-O {[%emt 0:04:16]} Qc7 {[%emt 0:02:19]} 13. Re1 {[%emt 0:05:18]} Bd7 {[%emt 0:06:04]} 14. Bg5 {[%emt 0:09:35]} Ne7 $1 {[%emt 0:02:29]} 15. Bxe7 {[%emt 0:06:19]} ({Better is} 15. Nbd2 $14) 15... Bxe7 $11 {[%emt 0:00:11]} 16. Ne5 {[%emt 0:00:13]} Bf6 {[%emt 0:03:08]} 17. Nxd7 {[%emt 0:03:40]} (17. Na3 {simplifies} Qxe5 18. Qxe5 Bxe5 19. Rxe5 Ke7 20. Nc2) 17... Nxd7 {[%emt 0:03:37]} 18. Na3 {[%emt 0:02:34]} O-O-O {[%emt 0:01:23]} 19. Rad1 {[%emt 0:00:47]} Nc5 {[%emt 0:00:41]} 20. Qe3 {[%emt 0:05:26]} h4 {[%emt 0:04:53]} 21. h3 {[%emt 0:02:08]} (21. Qf3 {is interesting.} h3 22. g3 Kb8 23. Nc4) 21... Rxd1 (21... Kb8 {keeps more tension.} 22. Qf3 Bg5 23. Nc4 Bf4) 22. Bxd1 {[%emt 0:02:39]} (22. Rxd1 {seems wilder.} Qe5 23. Qf3 Kc7 24. Nc4) 22... Rd8 {[%emt 0:01:08] White must now prevent ...Nd3.} 23. Bc2 {[%emt 0:00:13] Against Nd3} Nd7 {[%emt 0:02:24]} 24. Rd1 {[%emt 0:04:26]} Nb6 {[%emt 0:04:16]} 25. Rxd8+ {[%emt 0:02:10]} Qxd8 {[%emt 0:02:45]} 26. Bb3 {[%emt 0:05:19]} Qd6 {[%emt 0:01:11]} 27. Nc4 {[%emt 0:04:07]} Nxc4 {[%emt 0:00:12]} 28. Bxc4 {[%emt 0:00:01][%mdl 4096] Endgame KQB-KQB} Kb8 {[%emt 0:01:46]} 29. Qd3 {[%emt 0:01:32]} (29. Be2 {simplifies} Bd8 30. Qd3 Qxd3 31. Bxd3 g6 32. Kf1) 29... Qc5 {[%emt 0:01:37]} (29... Qf4 $5 {[%cal Rf4c1]}) 30. Bb3 {[%emt 0:02:19]} Qe5 {[%emt 0:02:09]} 31. Kf1 {[%emt 0:03:56]} Qh2 {[%emt 0:01:41]} 32. Qe4 {[%emt 0:00:40]} Qh1+ {[%emt 0:01:49]} 33. Ke2 {[%emt 0:00:04]} Qc1 {[%emt 0:00:15]} 34. Qc2 $1 {[%emt 0:00:16]} Qf4 {[%emt 0:00:05]} 35. Qd3 {[%emt 0:01:32]} Qg5 {[%emt 0:02:26]} (35... Bg5 {simplifies} 36. Qe3 Kc7 37. Qxf4+ Bxf4 38. Kd3 b6) 36. Qe4 {[%emt 0:01:12]} Be5 {[%emt 0:00:15]} (36... Qb5+ {simplifies} 37. Ke1 Kc7 38. Qc4+ Qxc4 39. Bxc4 Kd6) 37. Bd1 {[%emt 0:04:11]} (37. Qb4 {simplifies} Qf4 38. Qxf4 Bxf4 39. Kd3) 37... Bc7 {[%emt 0:00:23]} 38. b4 {[%emt 0:01:21]} Qc1 {[%emt 0:01:33]} 39. Qc2 {[%emt 0:00:11]} Qf4 {[%emt 0:00:06]} 40. c4 {[%emt 0:01:38]} f5 {[%emt 0:00:37]} 41. Qd3 {[%emt 0:02:45]} g5 {[%emt 0:01:38]} 42. Bb3 {[%emt 0:01:04]} Qe5+ {[%emt 0:00:52]} 43. Qe3 {[%emt 0:00:49]} Qb2+ {[%emt 0:00:08]} 44. Kf1 {[%emt 0:01:14]} Qa1+ {[%emt 0:01:09]} 45. Qe1 {[%emt 0:00:49]} Qf6 {[%emt 0:00:19]} 46. c5 {[%emt 0:00:12]} e5 {[%emt 0:00:02]} 47. Qd2 {[%emt 0:01:41]} e4 {[%emt 0:00:22]} 48. Qd5 {[%emt 0:00:16]} Qa1+ {[%emt 0:00:12]} 49. Ke2 $1 {[%emt 0:00:50]} Qb2+ {[%emt 0:01:06]} 50. Qd2 {[%emt 0:00:02]} Qf6 {[%emt 0:00:16]} 51. Qd5 {[%emt 0:01:26]} Bf4 {[%emt 0:00:19]} 52. a4 {[%emt 0:02:34]} Qb2+ {[%emt 0:03:19]} 53. Kf1 {[%emt 0:00:02]} e3 {[%emt 0:01:35]} 54. fxe3 {[%emt 0:00:43]} Qc1+ {[%emt 0:00:21]} 55. Bd1 {[%emt 0:00:31]} Qxe3 {[%emt 0:03:47]} 56. b5 {[%emt 0:00:43]} (56. Qxf5 {is a self mate.} Bg3) 56... axb5 {[%emt 0:01:22]} 57. axb5 {[%emt 0:00:42]} Bg3 {[%emt 0:05:34][%csl Gg3][%cal Re3e1] [#]} 58. Qg8+ {[%emt 0:01:30]} Kc7 {[%emt 0:00:08][%csl Gg3][%cal Re3e1]} 59. Qf7+ {[%emt 0:00:17]} ({Much weaker is} 59. b6+ Kc6 60. Bf3+ Kxc5 61. Qf8+ Kxb6 62. Qb4+ Kc7 63. Qxb7+ Kd8 64. Qa8+ Ke7 65. Qb7+ Kf6 66. Qc6+ Qe6 $17) 59... Kd8 {[%emt 0:00:16][%csl Gg3][%cal Re3e1]} 60. Qf8+ {[%emt 0:00:14]} Qe8 {[%emt 0:01:50]} 61. Qxe8+ {[%emt 0:01:11]} Kxe8 $14 {[%emt 0:00:01] KB-KB} 62. Bf3 {[%emt 0:00:30]} b6 {[%emt 0:00:05]} 63. cxb6 {[%emt 0:00:26]} Ke7 {[%emt 0:00:19]} 64. Ke2 {[%emt 0:00:19]} Kd6 {[%emt 0:00:08]} 65. Kd3 {[%emt 0:00:43]} Kc5 {[%emt 0:00:09][%csl LRb5,LRb6]} 66. b7 {[%emt 0:00:08]} Be5 {[%emt 0:02:04]} 67. Bc6 {[%emt 0:00:21]} g4 {[%emt 0:00:15]} 68. Bd7 {[%emt 0:00:23][%csl LRf5,LRg4]} gxh3 {[%emt 0:00:12]} 69. gxh3 {[%emt 0:00:04]} (69. Bxf5 hxg2 70. Bg4 g1=Q 71. Bf3 Qd4+ 72. Ke2 Bf4 73. b8=Q Qd2+ 74. Kf1 Bxb8 75. Bg4 h3 76. Be2 h2 77. Bf3 Bg3 78. Bh5 h1=Q#) 69... Bb8 {[%emt 0:00:30]} 70. Ke3 {[%emt 0:00:16]} Kb6 {[%emt 0:00:21]} 71. Bc6 {[%emt 0:00:18]} Kc5 {[%emt 0:00:13]} 72. Kf3 {[%emt 0:01:15]} Kb6 {[%emt 0:00:34]} 73. Kf2 {[%emt 0:00:11]} Kc5 {[%emt 0:00:07]} 74. Kf3 {[%emt 0:00:16] Weighted Error Value: White=0.06 (flawless) /Black=0.05 (flawless)} 1/2-1/2